Cogmind - Beta 10.2 --- EXPLORER MODE // 2021.09.18 @ 14:08:54 Player: Xax Result: Self-destructed Performance ------------- Evolutions (5) 2500 Regions Visited (16) 3200 Robots Destroyed (267) 1335 Value Destroyed (10603) 10603 Prototype IDs (38) 760 Alien Tech Used (0) 0 Bonus (4975) 4975 TOTAL SCORE: 23373 Bonus ------- High Alert Combat Kills 1005 Follower Combat Kills 2464 Network Hubs Disabled 200 Met Data Miner 300 Built Enhanced Grunts 300 A7 Reached Mainframe 300 Met R17 at Cetus 500 Friendly Fire -94 Cogmind --------- Core Integrity 497/1000 Matter 799/800 Energy 48/270 System Corruption 1% Temperature Cool (0) Movement Hovering (111) Ox1 Location -5/Factory Parts ------- > --- POWER (2) -------- Micro Fission Core > --- PROPULSION (4) --- Gyrokinetic Inverter Improved Antigrav System Improved Antigrav System Improved Antigrav System > --- UTILITY (10) ----- Advanced Cooling System Small Battery Matter Compressor Matter Compressor Advanced Target Analyzer Improved Kinecellerator Improved Maneuvering Thrusters Centrium Medium Armor Plating Point Defense System System Restoration Module > --- WEAPON (2) ------- Gamma Rifle Gauss Rifle > --- INVENTORY (4) ---- Centrium Heavy Treads Centrium Heavy Treads Peak State ------------ > --- POWER ------------ Micro Fission Core Quantum Reactor > --- PROPULSION ------- Centrium Heavy Treads Centrium Heavy Treads > --- UTILITY ---------- High-capacity Storage Unit Matter Compressor Advanced Terrain Scan Processor Improved Core Shielding Layered Heavy Armor Plating Centrium Medium Armor Plating Centrium Medium Armor Plating Centrium Medium Armor Plating Improved Focal Shield > --- WEAPON ----------- KE Penetrator Magnetic Acceleration Cannon > --- INVENTORY -------- Neutrino Core Micro Fission Core Improved Medium Treads Matter Compressor Improved Kinecellerator KE Penetrator Improved KE Penetrator Magnetic Acceleration Cannon Long-range Missile Launcher [Rating: 127] Favorites ----------- Power Micro Fission Core Engine Light Ion Engine Power Core Micro Fission Core Reactor Quantum Reactor Propulsion Light Treads Treads Light Treads Leg Flexi-carbon Leg Wheel Armored Huge Wheel Hover Unit Improved Antigrav System Utility High-capacity Storage Unit Device Improved Heat Sink Storage High-capacity Storage Unit Processor Advanced Terrain Scan Processor Hackware Hacking Suite Protection Centrium Medium Armor Plating Weapon Flak Cannon Energy Gun Particle Gun Energy Cannon Ion Cannon Ballistic Gun Precision Assault Rifle Ballistic Cannon Flak Cannon Launcher Mini Grenade Launcher Impact Weapon Great Maul Slashing Weapon Greatsword Piercing Weapon Heavy Pick Build | -11 -10 -10 -9 -9 -8 -7 -7 -7 -7 -6 -6 -6 -6 -6 -6 -5 ------- Run | Scr Mat Min Mat Sto Mat Fac Low Low Dat Pro Fac Ext Cet Arc Hub Fac Slots Evolved 11 | . 1 . 2 . 2 2 . . . . 2 . . . . 2 Power 1 | . . . . . . . . . . . 1 . . . . . Propulsion 2 | . . . 1 . . 1 . . . . . . . . . . Utility 8 | . 1 . 1 . 2 1 . . . . 1 . . . . 2 Weapon . | . . . . . . . . . . . . . . . . . Parts Attached 302 | 7 10 11 42 29 16 16 6 8 . 7 6 26 17 1 28 72 Power 29 | 1 1 2 3 1 1 1 1 . . . 2 2 3 . 4 7 Engine 13 | 1 1 1 2 1 1 1 . . . . 1 1 . . 3 . Core 11 | . . 1 1 . . . 1 . . . 1 1 . . 1 5 Reactor 5 | . . . . . . . . . . . . . 3 . . 2 Propulsion 48 | 2 2 1 10 8 5 2 . 1 . . . 6 2 . . 9 Treads 33 | 2 2 1 10 8 3 . . . . . . . 2 . . 5 Leg 6 | . . . . . . . . . . . . 6 . . . . Wheel 5 | . . . . . 2 2 . 1 . . . . . . . . Hover 4 | . . . . . . . . . . . . . . . . 4 Flight . | . . . . . . . . . . . . . . . . . Utility 82 | 2 3 2 7 4 6 2 4 1 . . 2 9 5 . 10 25 Device 26 | 1 . . 1 1 2 . 3 . . . 1 2 1 . 6 8 Storage 13 | 1 1 . 1 1 1 . . . . . . 1 . . 2 5 Processor 5 | . . . 1 1 . 1 . . . . . 1 . . . 1 Hackware 1 | . . . . . . . . . . . . 1 . . . . Protection 37 | . 2 2 4 1 3 1 1 1 . . 1 4 4 . 2 11 Artifact . | . . . . . . . . . . . . . . . . . Weapon 143 | 2 4 6 22 16 4 11 1 6 . 7 2 9 7 1 14 31 Energy Gun 11 | 2 2 . . 1 1 . . . . . . . 1 . 2 2 Energy Cannon 1 | . . . . . . . . 1 . . . . . . . . Ballistic Gun 31 | . 1 . 1 . 2 5 1 . . 3 1 1 2 1 4 9 Ballistic Cannon 46 | . 1 1 15 11 . 1 . 1 . . 1 3 2 . 1 9 Launcher 32 | . . 5 1 4 . 2 . 2 . 3 . 5 2 . 2 6 Special Weapon . | . . . . . . . . . . . . . . . . . Impact Weapon 10 | . . . 5 . 1 3 . 1 . . . . . . . . Slashing Weapon 10 | . . . . . . . . 1 . 1 . . . . 3 5 Piercing Weapon 2 | . . . . . . . . . . . . . . . 2 . Special Melee Weapon . | . . . . . . . . . . . . . . . . . Unidentified Prototypes 11 | . . . . 2 . 2 . . . . . . 5 . 1 1 Parts Lost 45 | . . 5 1 8 . 1 2 1 . . 2 6 . . 4 15 Power 7 | . . 1 . 1 . 1 . . . . . . . . 1 3 Propulsion 2 | . . . . 2 . . . . . . . . . . . . Utility 23 | . . 2 1 3 . . 2 1 . . 2 5 . . 1 6 Weapon 13 | . . 2 . 2 . . . . . . . 1 . . 2 6 Highest Loss Streak 8 | . . 5 1 8 . 1 1 1 . . 2 3 . . 2 3 Average Slot Usage (%) 89 | . 98 99 98 94 95 85 84 82 85 85 86 91 96 87 85 79 Engine 4 | . 11 8 9 2 8 7 2 . . . 6 6 . . 3 . Core 3 | . . 3 . 7 . . 4 7 7 7 6 6 . . 3 5 Reactor 1 | . . . . . . . . . . . . . 11 12 4 4 Treads 13 | . 24 25 29 25 20 . . . . . . . 2 12 12 8 Leg 2 | . . . . . . . . . . . . 23 19 . . . Wheel 2 | . . . . . . 14 14 14 14 14 12 . . . . . Device 8 | . 12 5 . 2 10 7 18 21 21 21 24 6 6 12 9 8 Storage 12 | . 12 12 20 19 15 14 7 7 7 7 6 6 12 12 12 13 Processor 6 | . . . 7 9 8 14 9 7 7 7 6 7 11 6 6 4 Protection 15 | . 12 18 12 7 12 14 13 14 14 14 11 18 18 18 21 21 Energy Gun 1 | . 15 5 . . 3 . . . . . . . . . . . Ballistic Gun 3 | . 2 . . . 1 9 14 3 . 2 8 5 6 12 7 1 Ballistic Cannon 6 | . 6 5 17 19 10 2 . 5 7 6 3 2 4 . . 1 Launcher 1 | . . 12 1 . . . . 1 7 3 . 3 . . 1 . Naked Turns . | . . . . . . . . . . . . . . . . . Heaviest Build 121 | 16 49 51 62 58 56 59 60 66 66 67 81 88 115 114 118 121 Greatest Support 160 | 40 40 40 63 66 63 56 56 56 56 56 56 76 160 160 160 160 Greatest Overweight (x) 33 | . 2 1 1 2 18 1 1 1 1 1 1 5 1 . . 33 Average Overweight (x) . | . . 1 . . . . . 1 1 1 1 . . . . . Largest Inventory Capacity 12 | 8 12 12 12 12 12 12 12 12 12 12 12 12 12 12 12 12 Average Capacity 11 | 6 10 12 12 12 11 12 12 12 12 12 12 12 12 12 12 10 Most Carried 12 | 6 12 12 12 12 12 12 12 12 11 12 12 12 12 12 12 12 Average Carried 10 | 3 9 11 11 10 8 11 11 11 11 11 11 10 11 11 11 9 Final Capacity 12 | 8 12 12 12 12 12 12 12 12 12 12 12 12 12 12 12 4 Final Carried 12 | 5 12 12 12 8 12 11 12 11 11 12 12 11 10 12 11 4 Class Distribution -------------------- 62% | Hacker-Mutant 37% | Scavenger-Mutant Dominant Class ---------------- Hacker-Mutant | -10/Materials Hacker-Mutant | -10/Mines Hacker-Mutant | -9/Materials Hacker-Mutant | -9/Storage Scavenger-Mutant | -8/Materials Hacker-Mutant | -7/Factory Hacker-Mutant | -7/Lower Caves Hacker-Mutant | -7/Lower Caves Hacker-Mutant | -7/Data Miner Hacker-Mutant | -6/Proximity Caves Hacker-Mutant | -6/Factory Hacker-Mutant | -6/Extension Scavenger-Mutant | -6/Cetus Scavenger-Mutant | -6/Archives Scavenger-Mutant | -6/Hub_04(d) Scavenger-Mutant | -5/Factory Resources | -11 -10 -10 -9 -9 -8 -7 -7 -7 -7 -6 -6 -6 -6 -6 -6 -5 ----------- Run | Scr Mat Min Mat Sto Mat Fac Low Low Dat Pro Fac Ext Cet Arc Hub Fac Matter Collected 8982 | 208 306 383 1183 728 298 692 141 269 . 133 158 602 466 18 1330 2067 Remotely . | . . . . . . . . . . . . . . . . . Salvage Created 9695 | . 325 105 1187 603 298 947 393 445 . 94 117 1218 49 . 1394 2520 Parts 528 | . 24 5 87 40 18 47 20 18 . 8 5 60 4 . 72 120 Haulers Intercepted 4 | . . . 1 . . 2 . . . . . . . . . 1 Recyclers Shooed 7 | . . . . . . 1 . . . . . 4 . . . 2 Parts Field Recycled . | . . . . . . . . . . . . . . . . . Retrieved Matter . | . . . . . . . . . . . . . . . . . Parts Self-Destructed . | . . . . . . . . . . . . . . . . . Prevented . | . . . . . . . . . . . . . . . . . Kills | -11 -10 -10 -9 -9 -8 -7 -7 -7 -7 -6 -6 -6 -6 -6 -6 -5 ------- Run | Scr Mat Min Mat Sto Mat Fac Low Low Dat Pro Fac Ext Cet Arc Hub Fac Combat Hostiles Destroyed 217 | . 7 19 36 24 6 17 7 11 . 5 3 7 2 . 27 46 Melee 23 | . . . . . . . . . . . . . . . 5 18 Guns 67 | . 5 2 1 . 1 12 7 3 . . 3 3 1 . 16 13 Cannons 76 | . 2 2 35 16 5 4 . 3 . 3 . 1 1 . . 4 AOE 51 | . . 15 . 8 . 1 . 5 . 2 . 3 . . 6 11 Classes Destroyed 19 | . 3 2 7 1 1 1 . 2 . 1 . 1 . . . . Worker 17 | . . . 2 . . 1 . . . . . 1 . . 8 5 Builder 16 | . . . 2 2 . 1 . . . . . 6 . . 2 3 Tunneler 2 | . . . . . . . . . . . . 1 . . 1 . Hauler 4 | . . . 1 . . 2 . . . . . . . . . 1 Recycler 9 | . . . 2 . . . . . . . . 5 . . 1 1 Operator 7 | . . . 5 . . . . . . . . 1 . . 1 . Watcher 11 | . 3 . 4 1 1 . . . . . . 1 . . 1 . Swarmer 15 | . 2 . 5 3 . . . . . 2 . 1 2 . . . Grunt 101 | . 5 2 21 13 1 11 4 3 . 1 . 1 . . 13 26 Brawler 3 | . . . . . . 1 1 . . . . . . . . 1 Duelist 5 | . . . 1 . . 2 . . . 1 . 1 . . . . Protector 4 | . . . . 2 . . . . . . . . . . 2 . Sentry 32 | . . . 9 6 4 3 2 . . . . 3 . . 3 2 Demolisher 1 | . . 1 . . . . . . . . . . . . . . Hunter 12 | . . . . . 1 . . . . . 2 . . . 1 8 Programmer 12 | . . . . . . . . 1 . . 1 . . . 2 8 Behemoth 3 | . . . . . . . . . . 1 . 1 . . . 1 Lightning 6 | . . . . . . . . . . . . . . . 6 . Assembled 16 | . . 16 . . . . . . . . . . . . . . Thug 4 | . . . . . . . . 4 . . . . . . . . Savage 1 | . . . . . . . . 1 . . . . . . . . Butcher 1 | . . . . . . . . 1 . . . . . . . . Mutant 1 | . . . . . . . . 1 . . . . . . . . Best Kill Streak 18 | . 2 15 5 10 2 5 5 6 . 2 2 9 2 . 18 7 Combat Bots Only 15 | . 2 15 5 8 2 3 5 6 . 2 2 3 2 . 9 6 Max Kills in Single Turn 6 | . 1 6 2 6 1 2 1 2 . 2 1 3 1 . 3 3 Gunslinging . | . . . . . . . . . . . . . . . . . Exploded 5 | . . 5 . 5 . 1 . 2 . 1 . 1 . . 1 3 Melee 1 | . . . . . . . . . . . . . . . 1 1 Uniques/NPCs Destroyed . | . . . . . . . . . . . . . . . . . Combat | -11 -10 -10 -9 -9 -8 -7 -7 -7 -7 -6 -6 -6 -6 -6 -6 -5 -------- Run | Scr Mat Min Mat Sto Mat Fac Low Low Dat Pro Fac Ext Cet Arc Hub Fac Damage Taken 14247 | . 165 951 479 1830 88 893 286 446 . 302 263 1493 198 50 2934 3869 Core 1481 | . 6 232 53 256 . 116 33 26 . . 17 70 29 . 140 503 Absorbed by Shields 862 | . . . . . . . . . . . 112 115 212 50 373 . Core Remaining (%) 61 | 100 . 4 . 22 100 . . . . 75 . . . . 69 . Volleys Fired 578 | . 30 21 82 51 18 69 21 38 . 13 12 38 15 1 94 75 Largest 2 | . 2 2 2 2 2 2 2 2 . 2 2 2 2 2 2 2 Hottest 117 | . 100 100 88 96 117 76 56 84 . 87 83 101 88 65 79 108 Shots Fired 975 | . 51 41 150 103 31 104 42 49 . 22 24 64 26 2 130 136 Gun 425 | . 47 10 7 . 14 87 42 26 . 1 15 14 15 2 96 49 Cannon 424 | . 4 7 143 97 17 14 . 13 . 10 9 32 11 . . 67 Launcher 126 | . . 24 . 6 . 3 . 10 . 11 . 18 . . 34 20 Special . | . . . . . . . . . . . . . . . . . Kinetic 783 | . 12 7 150 97 23 101 42 39 . 11 24 46 26 2 96 107 Thermal 57 | . 39 10 . . 8 . . . . . . . . . . . Explosive 113 | . . 24 . 6 . 3 . 10 . 11 . 5 . . 34 20 Electromagnetic 22 | . . . . . . . . . . . . 13 . . . 9 Robot Hit Streak 106 | . 18 20 40 39 18 49 69 106 . 11 13 24 17 19 32 68 Robot Miss Streak 4 | . 2 1 4 2 1 1 . 1 . 1 2 2 1 . 3 1 Penetration Max 2 | . . . . . . 1 . . . . . 2 . . 1 1 Secondary Targets . | . . . . . . . . . . . . . . . . . Shots Hit Robots 870 | . 42 33 132 44 25 97 38 47 . 17 19 48 24 2 125 177 Core Hits 633 | . 18 41 141 65 10 43 16 22 . 14 8 47 9 . 106 93 Critical Hits 38 | . . . . . . 2 . 2 . 1 . 3 2 . 20 8 Critical Kills 15 | . . . . . . 2 . 1 . 1 . . . . 8 3 Critical Parts Destroyed 21 | . . . . . . . . 1 . . . 2 1 . 12 5 Melee Attacks 71 | . . . . . . . . . . . . . . . 17 54 Impact . | . . . . . . . . . . . . . . . . . Slashing 71 | . . . . . . . . . . . . . . . 17 54 Piercing . | . . . . . . . . . . . . . . . . . Sneak Attacks 1 | . . . . . . . . . . . . . . . 1 . Combat Hostiles . | . . . . . . . . . . . . . . . . . Follow-up Attacks . | . . . . . . . . . . . . . . . . . Damage Inflicted 31056 | . 515 1343 2502 1852 568 2224 721 1412 . 909 382 2417 639 47 7309 8216 Guns 8688 | . 462 152 51 . 213 1691 721 512 . 11 267 367 357 47 2335 1502 Cannons 7860 | . 53 125 2451 888 355 324 . 338 . 206 115 872 282 . . 1851 Explosions 10917 | . . 1066 . 953 . 209 . 562 . 692 . 1178 . . 4025 2232 Melee 3569 | . . . . . . . . . . . . . . . 949 2620 Ramming 22 | . . . . 11 . . . . . . . . . . . 11 Kinetic 15617 | . 115 125 2502 888 419 2015 721 850 . 217 382 1239 639 47 2335 3123 Thermal 811 | . 400 152 . . 149 . . . . . . 110 . . . . Explosive 10065 | . . 1066 . 953 . 209 . 562 . 692 . 326 . . 4025 2232 Electromagnetic 972 | . . . . . . . . . . . . 742 . . . 230 Impact . | . . . . . . . . . . . . . . . . . Slashing 3569 | . . . . . . . . . . . . . . . 949 2620 Piercing . | . . . . . . . . . . . . . . . . . Highest Corruption 18 | . . . . 15 . 1 1 1 1 1 2 2 2 2 18 7 Average Corruption 3 | . . . . 6 . 1 1 1 1 1 1 2 2 2 9 3 Corruption Purged 7 | . . . . . . . . . . . . . . . 1 6 Effects 200 | . . . . 40 . 1 3 1 . 6 4 12 7 1 57 68 Message Errors 48 | . . . . 12 . . 3 . . 2 2 6 3 . 4 16 Matter Fused 42 | . . . . 9 . . . . . . . . . . 12 21 Heat Flow Errors 24 | . . . . 3 . . . . . . . 3 3 1 6 8 Energy Discharges 22 | . . . . 4 . . . 1 . 2 . 2 . . 7 6 Parts Rejected 5 | . . . . 1 . . . . . . . . . . 2 2 Data Loss (minor) 20 | . . . . 2 . . . . . 2 1 1 1 . 5 8 Data Loss (major) 4 | . . . . 1 . . . . . . . . . . 3 . Misfires 3 | . . . . 3 . . . . . . . . . . . . Misdirections 6 | . . . . 4 . . . . . . . . . . 2 . Targeting Errors 21 | . . . . 1 . 1 . . . . 1 . . . 13 5 Weapon Failures 5 | . . . . . . . . . . . . . . . 3 2 Overload Shots . | . . . . . . . . . . . . . . . . . Overflow Damage 652 | . . 45 . 4 13 5 . 18 . 48 . 40 . . 253 226 Projectiles 68 | . . 8 . . 13 5 . 9 . 2 . 7 . . . 24 Explosions 257 | . . 37 . 4 . . . 9 . 46 . 33 . . 67 61 Melee 327 | . . . . . . . . . . . . . . . 186 141 Knockbacks 67 | . . 2 29 9 5 1 . 1 . 1 . 3 . . . 16 Impact . | . . . . . . . . . . . . . . . . . Kinetic 61 | . . 2 27 8 4 1 . 1 . 1 . 3 . . . 14 Secondary 6 | . . . 2 1 1 . . . . . . . . . . 2 Self-Inflicted Damage 422 | . . 136 . 16 . 14 . 95 . 34 . 23 . . 89 15 Shots 22 | . . 6 . 2 . 1 . 5 . 1 . 1 . . 5 1 Rammed 2 | . . . . 1 . . . . . . . . . . . 1 Targets Rammed 2 | . . . . 1 . . . . . . . . . . . 1 Kicked . | . . . . . . . . . . . . . . . . . Crushed . | . . . . . . . . . . . . . . . . . Highest Temperature 856 | . 382 268 282 361 48 . . . . . . 361 213 228 399 856 Average Temperature 118 | . 118 128 65 75 22 . . . . . . 124 74 95 158 161 Received Heat Transfer 3084 | . 126 53 270 108 63 303 147 99 . 108 . 330 16 12 681 768 Effects 73 | . 1 . 3 1 . . . . . . . 1 . . 4 63 Shutdowns 14 | . . . . . . . . . . . . . . . 1 13 Energy Bleed 7 | . 1 . . . . . . . . . . . . . 1 5 Interference 10 | . . . 3 . . . . . . . . . . . 1 6 Matter Decay 3 | . . . . 1 . . . . . . . . . . . 2 Short Circuit 7 | . . . . . . . . . . . . 1 . . 1 5 Damage (minor) 2 | . . . . . . . . . . . . . . . . 2 Damage (major) 28 | . . . . . . . . . . . . . . . . 28 Damage (core) 2 | . . . . . . . . . . . . . . . . 2 Siege Activations . | . . . . . . . . . . . . . . . . . Robots Corrupted . | . . . . . . . . . . . . . . . . . Combat Hostiles . | . . . . . . . . . . . . . . . . . Parts Fried 6 | . . . . . . . . . . . . 4 . . . 2 Impact Corruptions . | . . . . . . . . . . . . . . . . . Robots Melted . | . . . . . . . . . . . . . . . . . Combat Hostiles . | . . . . . . . . . . . . . . . . . Parts Melted 4 | . 4 . . . . . . . . . . . . . . . Heat Transferred 1963 | . 1147 370 . . 296 . . . . . . 150 . . . . Parts Sabotaged . | . . . . . . . . . . . . . . . . . Parts Stolen . | . . . . . . . . . . . . . . . . . Parts Stripped . | . . . . . . . . . . . . . . . . . Power Chain Reactions 2 | . . . . . . . . . . . . 2 . . . . Missiles Intercepted . | . . . . . . . . . . . . . . . . . Alert | -11 -10 -10 -9 -9 -8 -7 -7 -7 -7 -6 -6 -6 -6 -6 -6 -5 ------- Run | Scr Mat Min Mat Sto Mat Fac Low Low Dat Pro Fac Ext Cet Arc Hub Fac Peak Influence 795 | . 123 55 418 423 243 542 . . . . 74 368 284 148 745 795 Initial 221 | . . 5 . 43 . 30 . . . . . 26 28 . 35 221 Average 180 | . 45 17 129 108 64 310 . . . . 32 85 187 120 376 353 Maximum Alert Level 3 | . . . 2 2 1 2 . . . . . 1 1 . 3 3 Low Security (%) 67 | 100 100 100 70 78 98 24 . . . . 100 93 44 100 34 34 Level 1 15 | . . . 28 21 1 42 . . . . . 6 55 . 8 16 Level 2 14 | . . . 1 . . 32 . . . . . . . . 53 38 Level 3 2 | . . . . . . . . . . . . . . . 3 10 Level 4 . | . . . . . . . . . . . . . . . . . Level 5 . | . . . . . . . . . . . . . . . . . High Security . | . . . . . . . . . . . . . . . . . Max Security . | . . . . . . . . . . . . . . . . . Squads Dispatched 51 | . 1 . 7 5 . 4 . . . . 1 3 . . 11 19 Investigation 23 | . 1 . 4 2 . . . . . . 1 1 . . 5 9 Extermination 8 | . . . . . . . . . . . . . . . 2 6 Reinforcement 12 | . . . 3 1 . 1 . . . . . 2 . . 2 3 Assault 5 | . . . . 2 . . . . . . . . . . 2 1 Garrison 3 | . . . . . . 3 . . . . . . . . . . Intercept . | . . . . . . . . . . . . . . . . . Construction Impeded 4 | . . . . 1 . . . . . . . 2 . . . 1 Haulers Reinforced 2 | . . . . . . 1 . . . . . . . . . 1 Stealth | -11 -10 -10 -9 -9 -8 -7 -7 -7 -7 -6 -6 -6 -6 -6 -6 -5 --------- Run | Scr Mat Min Mat Sto Mat Fac Low Low Dat Pro Fac Ext Cet Arc Hub Fac Distress Signals 20 | . 1 . 4 2 1 1 . . . . . 1 2 . 4 4 Communications Jammed . | . . . . . . . . . . . . . . . . . Distress Signals . | . . . . . . . . . . . . . . . . . Times Spotted 325 | . 11 20 53 29 12 19 5 10 . 6 3 19 18 4 49 67 Peak Tracking Total 11 | . 4 11 4 10 3 3 3 3 . 3 2 5 5 2 9 6 Tactical Retreats 17 | . . . 3 . 4 . . . . . . 3 1 . 5 1 Traps | -11 -10 -10 -9 -9 -8 -7 -7 -7 -7 -6 -6 -6 -6 -6 -6 -5 ------- Run | Scr Mat Min Mat Sto Mat Fac Low Low Dat Pro Fac Ext Cet Arc Hub Fac Traps Triggered 12 | . . . 4 3 . . . . . . . 1 . . 2 2 Indirectly . | . . . . . . . . . . . . . . . . . Trap Hack Attempts . | . . . . . . . . . . . . . . . . . Triggered . | . . . . . . . . . . . . . . . . . Disarmed 7 | . 1 . 6 . . . . . . . . . . . . . Reprogrammed . | . . . . . . . . . . . . . . . . . Reused . | . . . . . . . . . . . . . . . . . Traps Extracted . | . . . . . . . . . . . . . . . . . Installed . | . . . . . . . . . . . . . . . . . Triggered . | . . . . . . . . . . . . . . . . . Machines | -11 -10 -10 -9 -9 -8 -7 -7 -7 -7 -6 -6 -6 -6 -6 -6 -5 ---------- Run | Scr Mat Min Mat Sto Mat Fac Low Low Dat Pro Fac Ext Cet Arc Hub Fac Machines Disabled 25 | . . . . 3 . . . . . . . . . 3 9 10 Max in Single Turn 2 | . . . . 1 . . . . . . . . . . 1 2 Network Hub 1 | . . . . . . . . . . . . . . . 1 . Machines Sabotaged . | . . . . . . . . . . . . . . . . . Garrisons Compromised . | . . . . . . . . . . . . . . . . . Overloaded Fab Kills . | . . . . . . . . . . . . . . . . . Fab Network Shutdowns 1 | . . . . . . . . . . . . . . . . 1 Hacking | -11 -10 -10 -9 -9 -8 -7 -7 -7 -7 -6 -6 -6 -6 -6 -6 -5 --------- Run | Scr Mat Min Mat Sto Mat Fac Low Low Dat Pro Fac Ext Cet Arc Hub Fac Machines Accessed 58 | . 8 . 8 10 3 . . . 4 . 2 2 3 . 7 11 Terminals 34 | . 6 . 5 7 1 . . . . . 1 1 3 . 7 3 Fabricators 2 | . . . . . . . . . . . . . . . . 2 Repair Stations 10 | . 1 . 1 2 1 . . . . . . . . . . 5 Recycling Units 6 | . 1 . 1 1 1 . . . . . 1 1 . . . . Scanalyzers 2 | . . . 1 . . . . . . . . . . . . 1 Garrison Access . | . . . . . . . . . . . . . . . . . Total Hacks 232 | . 28 . 21 35 14 . . . 23 . 8 6 9 . 28 60 Successful 155 | . 21 . 17 23 10 . . . 23 . 4 4 9 . 11 33 Failed 77 | . 7 . 4 12 4 . . . . . 4 2 . . 17 27 Catastrophic 9 | . . . . . . . . . . . . . . . 2 7 Database Lockouts . | . . . . . . . . . . . . . . . . . Manual 6 | . . . . . . . . . . . . . 2 4 . . Terminals 110 | . 18 . 12 26 1 . . . . . 4 1 9 . 28 11 Fabricators 11 | . . . . . . . . . . . . . . . . 11 Repair Stations 62 | . 9 . 5 7 9 . . . . . . . . . . 32 Recycling Units 17 | . 1 . 1 2 4 . . . . . 4 5 . . . . Scanalyzers 9 | . . . 3 . . . . . . . . . . . . 6 Garrison Access . | . . . . . . . . . . . . . . . . . Terminal Hacks 85 | . 12 . 9 15 1 . . . 23 . 1 1 9 . 11 3 Record 21 | . . . . . . . . . 11 . . . 8 . 2 . Part Schematic 19 | . . . . 9 . . . . 4 . 1 . . . 3 2 Robot Schematic 6 | . . . . 1 . . . . 5 . . . . . . . Prototype ID Bank 13 | . 2 . 3 . 1 . . . 3 . . . . . 4 . Open Door 4 | . . . . 2 . . . . . . . 1 1 . . . Level Access Points 1 | . 1 . . . . . . . . . . . . . . . Branch Access Points 2 | . . . 1 1 . . . . . . . . . . . . Emergency Access Points 3 | . 2 . 1 . . . . . . . . . . . . . Scanalyzer Index 2 | . . . . 1 . . . . . . . . . . 1 . Unreport Threat 2 | . . . 1 . . . . . . . . . . . . 1 Locate Traps 2 | . 2 . . . . . . . . . . . . . . . Disarm Traps 4 | . 2 . 2 . . . . . . . . . . . . . Hauler Manifests 1 | . 1 . . . . . . . . . . . . . . . Registered Components 1 | . 1 . . . . . . . . . . . . . . . Registered Prototypes 2 | . 1 . . 1 . . . . . . . . . . . . Zone Layout 2 | . . . 1 . . . . . . . . . . . 1 . Fabricator Hacks 6 | . . . . . . . . . . . . . . . . 6 Load Schematic 1 | . . . . . . . . . . . . . . . . 1 Build 5 | . . . . . . . . . . . . . . . . 5 Repair Station Hacks 48 | . 8 . 5 7 8 . . . . . . . . . . 20 Scan Component 28 | . 4 . 3 4 4 . . . . . . . . . . 13 Repair 20 | . 4 . 2 3 4 . . . . . . . . . . 7 Recycling Unit Hacks 10 | . 1 . 1 1 1 . . . . . 3 3 . . . . Retrieve Matter 6 | . . . 1 . 1 . . . . . 2 2 . . . . Retrieve Components 4 | . 1 . . 1 . . . . . . 1 1 . . . . Scanalyzer 6 | . . . 2 . . . . . . . . . . . . 4 Insert Component 2 | . . . 1 . . . . . . . . . . . . 1 Analyze 4 | . . . 1 . . . . . . . . . . . . 3 Garrison Access Hacks . | . . . . . . . . . . . . . . . . . Unauthorized Hacks . | . . . . . . . . . . . . . . . . . Terminals . | . . . . . . . . . . . . . . . . . Fabricators . | . . . . . . . . . . . . . . . . . Repair Stations . | . . . . . . . . . . . . . . . . . Recycling Units . | . . . . . . . . . . . . . . . . . Scanalyzers . | . . . . . . . . . . . . . . . . . Garrison Access . | . . . . . . . . . . . . . . . . . Data Cores Recovered 3 | . . . 2 . . . . . . . . . . . 1 . Used 1 | . . . 1 . . . . . . . . . . . . . Hacking Detections 35 | . 5 . 4 6 1 . . . . . 1 1 1 . 7 9 Full Trace Events 24 | . 1 . 4 3 . . . . . . 1 1 . . 5 9 Feedback Events 1 | . . . . . . . . . . . 1 . . . . . Corruption 1 | . . . . . . . . . . . 1 . . . . . Feedback Blocked . | . . . . . . . . . . . . . . . . . Robot Schematics Acquired 6 | . . . . 1 . . . . 5 . . . . . . . Robots Built 4 | . . . . . . . . . . . . . . . . 4 Matter 570 | . . . . . . . . . . . . . . . . 570 Time 152 | . . . . . . . . . . . . . . . . 152 Total Robot Build Rating 20 | . . . . . . . . . . . . . . . . 20 Part Schematics Acquired 21 | . . . 1 9 . . . . 4 . 1 . . . 3 3 Parts Built . | . . . . . . . . . . . . . . . . . Matter . | . . . . . . . . . . . . . . . . . Time . | . . . . . . . . . . . . . . . . . Total Part Build Rating . | . . . . . . . . . . . . . . . . . Parts Repaired 20 | . 4 . 2 3 4 . . . . . . . . . . 7 Time 1074 | . 104 . 52 90 160 . . . . . . . . . . 668 Parts Recycled . | . . . . . . . . . . . . . . . . . Recycled Matter . | . . . . . . . . . . . . . . . . . Retrieved Matter 250 | . . . 149 . 101 . . . . . . . . . . . Retrieved Components 10 | . 5 . . 3 . . . . . . 2 . . . . . Parts Scanalyzed 2 | . . . 1 . . . . . . . . . . . . 1 Part Schematics Acquired 2 | . . . 1 . . . . . . . . . . . . 1 Parts Damaged 1 | . . . . . . . . . . . . . . . . 1 Bothacking | -11 -10 -10 -9 -9 -8 -7 -7 -7 -7 -6 -6 -6 -6 -6 -6 -5 ------------ Run | Scr Mat Min Mat Sto Mat Fac Low Low Dat Pro Fac Ext Cet Arc Hub Fac Used RIF Installer . | . . . . . . . . . . . . . . . . . Robots Hacked . | . . . . . . . . . . . . . . . . . Non-combat . | . . . . . . . . . . . . . . . . . Combat . | . . . . . . . . . . . . . . . . . Robot Hacks Applied . | . . . . . . . . . . . . . . . . . Relay Couplers Released 4 | . . . . . . . . . . . . . . . . 4 Programmers 4 | . . . . . . . . . . . . . . . . 4 Robots Rewired . | . . . . . . . . . . . . . . . . . Allies Hacked . | . . . . . . . . . . . . . . . . . Hacks Repelled . | . . . . . . . . . . . . . . . . . Allies | -11 -10 -10 -9 -9 -8 -7 -7 -7 -7 -6 -6 -6 -6 -6 -6 -5 -------- Run | Scr Mat Min Mat Sto Mat Fac Low Low Dat Pro Fac Ext Cet Arc Hub Fac Total Allies 16 | . . . . 2 . . . . . 1 . 4 5 . . 4 Largest Group 6 | . . . . 2 . . . . . 1 1 2 6 5 3 2 Highest-Rated Group 613 | . . . . 62 . . . . . 94 94 187 613 519 282 82 Highest-Rated Ally 156 | . . . . 31 . . . . . 94 94 156 156 143 94 41 Total Orders . | . . . . . . . . . . . . . . . . . Ally Attacks 246 | . . . . 16 . . . . . 13 7 43 87 28 26 26 Total Damage 10055 | . . . . 271 . . . . . 444 177 1996 3284 1009 1008 1866 Kills 65 | . . . . 6 . . . . . 1 . 16 19 4 10 9 Allies Corrupted 2 | . . . . . . . . . . . . . . . 2 . Allies Melted . | . . . . . . . . . . . . . . . . . Intel | -11 -10 -10 -9 -9 -8 -7 -7 -7 -7 -6 -6 -6 -6 -6 -6 -5 ------- Run | Scr Mat Min Mat Sto Mat Fac Low Low Dat Pro Fac Ext Cet Arc Hub Fac Robot Analysis Total . | . . . . . . . . . . . . . . . . . Derelict Logs Recovered 4 | . . . . . . . 2 . . 2 . . . . . . Drone Launches . | . . . . . . . . . . . . . . . . . Drone Recoveries . | . . . . . . . . . . . . . . . . . Exploration | -11 -10 -10 -9 -9 -8 -7 -7 -7 -7 -6 -6 -6 -6 -6 -6 -5 ------------- Run | Scr Mat Min Mat Sto Mat Fac Low Low Dat Pro Fac Ext Cet Arc Hub Fac Turns Passed 18062 | 77 1424 1009 1948 2019 664 473 949 668 106 834 338 1601 829 368 1413 3342 Spaces Moved 9154 | 41 660 492 898 991 234 226 783 500 97 716 258 881 439 192 596 1150 Core 12 | 6 . . . . 4 . . . . . . . . . . 2 Treads 5128 | 35 660 492 898 991 185 . . . . . . . 133 192 596 946 Legs 1113 | . . . . . . . . . . . . 807 306 . . . Wheels 2699 | . . . . . 45 226 783 500 97 716 258 74 . . . . Hover 202 | . . . . . . . . . . . . . . . . 202 Flight . | . . . . . . . . . . . . . . . . . Fastest Speed 50 | 50 160 180 160 160 110 100 100 110 110 110 110 110 150 160 160 50 Average Speed 145 | 143 173 180 163 164 163 105 109 110 110 110 110 145 156 160 160 148 Slowest Speed 1700 | 160 200 180 180 200 950 110 110 110 110 110 110 270 180 160 160 1700 Overloaded Moves . | . . . . . . . . . . . . . . . . . Propulsion Burnouts . | . . . . . . . . . . . . . . . . . Robots Hopped . | . . . . . . . . . . . . . . . . . Cave-ins Triggered 7 | . . . . 7 . . . . . . . . . . . . Exploration Rate (%) 59 | 5 81 80 89 96 18 5 83 72 75 78 8 59 88 99 56 27 Regions Visited 16 Branch Regions 10 Pre-discovered Areas 2 | . . . . 1 . . . . 1 . . . . . . . Known Exits Taken 16 | 1 1 1 1 1 1 1 1 1 1 1 1 1 1 1 1 . Unknown Exits Taken . | . . . . . . . . . . . . . . . . . Scrap Searched 10 | . . 1 . . . . 4 2 . 3 . . . . . . Spaces Dug 33 | . . . . 33 . . . . . . . . . . . . Terrain Destroyed 767 | . . 155 . 92 3 17 . 65 . 104 4 43 1 . 202 81 Melee . | . . . . . . . . . . . . . . . . . Projectile 77 | . . . . 34 3 2 . 2 . 5 4 2 1 . 16 8 AOE 690 | . . 155 . 58 . 15 . 63 . 99 . 41 . . 186 73 Terrain Rammed . | . . . . . . . . . . . . . . . . . Walls Destroyed . | . . . . . . . . . . . . . . . . . Machines Disabled . | . . . . . . . . . . . . . . . . . Actions | -11 -10 -10 -9 -9 -8 -7 -7 -7 -7 -6 -6 -6 -6 -6 -6 -5 --------- Run | Scr Mat Min Mat Sto Mat Fac Low Low Dat Pro Fac Ext Cet Arc Hub Fac Total 12742 | 59 889 573 1223 1279 488 354 828 568 96 737 288 1130 560 252 880 2538 Wait 2320 | . 157 40 176 183 182 27 10 15 . 1 8 157 65 54 117 1128 Move 9133 | 40 659 491 897 985 233 225 782 499 96 715 257 880 438 191 595 1150 Hop . | . . . . . . . . . . . . . . . . . Pick Up 165 | 12 22 7 9 12 21 9 5 4 . 1 3 13 8 3 13 23 Fast Attach 54 | . . 1 12 3 2 1 2 . . . 1 4 5 . 2 21 Attach 98 | 7 3 5 7 11 5 3 2 3 . . 3 8 2 . 5 34 Detach 17 | . . . 2 . 1 . . . . . . . . . 1 13 Swap 151 | . 7 5 23 15 9 12 2 5 . 7 2 14 10 1 21 18 Drop 143 | . 11 3 15 13 17 8 4 4 . . 2 11 17 2 15 21 Fire 578 | . 30 21 82 51 18 69 21 38 . 13 12 38 15 1 94 75 Melee 71 | . . . . . . . . . . . . . . . 17 54 Ram . | . . . . . . . . . . . . . . . . . Kick . | . . . . . . . . . . . . . . . . . Crush 2 | . . . . 1 . . . . . . . . . . . 1 Escape Stasis 10 | . . . . 5 . . . . . . . 5 . . . . Rewire . | . . . . . . . . . . . . . . . . . Trap . | . . . . . . . . . . . . . . . . . Miscellaneous . | . . . . . . . . . . . . . . . . . Route ------- -11/Scrapyard -10/Materials (discovered 5 exits: *Mat x3 / *Min x2) -10/Mines (discovered 2 exits: *Mat x2) -9/Materials (discovered 6 exits: *Mat x3 / *Min / *Sto x2) -9/Storage (discovered 2 exits: *Mat / Rec) -8/Materials -7/Factory -7/Lower Caves -7/Lower Caves (discovered 2 exits: *Fac / *Dat) -7/Data Miner -6/Proximity Caves -6/Factory (discovered 2 exits: *Ext x2) -6/Extension (discovered 3 exits: *Fac x2 / *Cet) -6/Cetus (discovered 3 exits: *Fac x2 / *Arc) -6/Archives (discovered 3 exits: *Fac / *Hub x2) -6/Hub_04(d) (discovered 3 exits: *Fac x3) -5/Factory (discovered 2 exits: *Fac / Upp) History --------- Turn | Location | Event 2 | -11/Scrapyard | Met Revision 17 31 | -11/Scrapyard | Identified exit to Materials 31 | -11/Scrapyard | Discovered exit to Materials (range 15) 78 | -11/Scrapyard | Entered Materials 78 | -10/Materials | Evolved 1 slot: Utility x1 91 | -10/Materials | Identified exit to Materials 308 | -10/Materials | Build established: Hacker-Mutant 439 | -10/Materials | Identified exit to Mines 439 | -10/Materials | Discovered exit to Mines (range 6) 912 | -10/Materials | Repaired Lrg. Matter Pod 939 | -10/Materials | Repaired Lgt. Treads 984 | -10/Materials | Repaired Lgt. Ion Engine 1012 | -10/Materials | Repaired Lgt. Treads 1150 | -10/Materials | Discovered exit to Mines (range 13) 1502 | -10/Materials | Entered Mines 1538 | -10/Mines | Met a Derelict bent on vengeance 1775 | -10/Mines | Discovered exit to Materials (range 9) 1928 | -10/Mines | Discovered exit to Materials (range 8) 1936 | -10/Mines | Received a Rocket Launcher from a helpful Derelict 1968 | -10/Mines | Assembled infested the area 2027 | -10/Mines | Core integrity fell below 50% 2040 | -10/Mines | Core integrity fell below 20% 2054 | -10/Mines | Destroyed 15 combat bots 2061 | -10/Mines | Lost 5 parts (1p2u2w) 2511 | -10/Mines | Entered Materials 2511 | -9/Materials | Evolved 2 slots: Propulsion x1, Utility x1 2586 | -9/Materials | Repaired Lgt. Treads 2614 | -9/Materials | Repaired Lgt. Treads 3034 | -9/Materials | Identified exit to Mines 3034 | -9/Materials | Identified exit to Storage 3216 | -9/Materials | Identified exit to Materials 3216 | -9/Materials | Discovered exit to Materials (range 15) 3582 | -9/Materials | Discovered exit to Materials (range 7) 4206 | -9/Materials | Discovered exit to Materials (range 16) 4459 | -9/Materials | Entered Storage 4834 | -9/Storage | Discovered exit to Materials (range 16) 4850 | -9/Storage | Learned location of Armory (-4) 4935 | -9/Storage | Identified exit to Recycling 5004 | -9/Storage | Repaired Imp. Treads 5102 | -9/Storage | Met a pair of Derelict thieves 5215 | -9/Storage | Destroyed 8 combat bots 5881 | -9/Storage | Crushed by falling debris 5893 | -9/Storage | Crushed by falling debris 5907 | -9/Storage | Crushed by falling debris 5915 | -9/Storage | Crushed by falling debris 5924 | -9/Storage | Crushed by falling debris 5925 | -9/Storage | System corruption reached 10% 5931 | -9/Storage | Crushed by falling debris 5932 | -9/Storage | Core integrity fell below 50% 5933 | -9/Storage | Crushed by falling debris 5964 | -9/Storage | Lost 8 parts (1p2n3u2w) 6381 | -9/Storage | Repaired Imp. Treads 6407 | -9/Storage | Repaired Lgt. Treads 6478 | -9/Storage | Entered Materials 6478 | -8/Materials | Evolved 2 slots: Utility x2 6552 | -8/Materials | Repaired Imp. Treads 6586 | -8/Materials | Repaired Cooling System 6616 | -8/Materials | Repaired Hcp. Storage Unit 6699 | -8/Materials | Repaired Mni. Assault Cannon 6799 | -8/Materials | Build established: Scavenger-Mutant 7137 | -8/Materials | Identified exit to Factory 7137 | -8/Materials | Discovered exit to Factory (range 4) 7142 | -8/Materials | Entered Factory 7142 | -7/Factory | Evolved 2 slots: Propulsion x1, Utility x1 7324 | -7/Factory | Garrison activated, responded to threat 7329 | -7/Factory | Build established: Hacker-Mutant 7502 | -7/Factory | Identified exit to Lower Caves 7502 | -7/Factory | Discovered exit to Lower Caves (range 12) 7615 | -7/Factory | Entered Lower Caves 7687 | -7/Lower Caves | Attracted the attention of an 0b10 checkpoint 7915 | -7/Lower Caves | Attracted the attention of an 0b10 outpost 7942 | -7/Lower Caves | Learned Factory trap positions 8556 | -7/Lower Caves | Identified exit to Lower Caves 8556 | -7/Lower Caves | Discovered exit to Lower Caves (range 7) 8564 | -7/Lower Caves | Entered another Lower Caves area 8602 | -7/Lower Caves | Attacked by a faux Warlord 8849 | -7/Lower Caves | Identified exit to Factory 8849 | -7/Lower Caves | Discovered exit to Factory (range 8) 9213 | -7/Lower Caves | Identified exit to Data Miner 9213 | -7/Lower Caves | Discovered exit to Data Miner (range 16) 9232 | -7/Lower Caves | Entered Data Miner 9232 | -7/Data Miner | Identified exit to Proximity Caves 9232 | -7/Data Miner | Discovered exit to Proximity Caves (range 6) 9253 | -7/Data Miner | Met Data Miner 9286 | -7/Data Miner | Learned location of Section 7 (-2) 9286 | -7/Data Miner | Acquired the access code to Warlord's prototype stash 9308 | -7/Data Miner | Received God Mode back door access code from Data Miner 9338 | -7/Data Miner | Entered Proximity Caves 9366 | -6/Proximity Caves | Learned Factory security intel 9675 | -6/Proximity Caves | Escorted by Enhanced Grunt 10016 | -6/Proximity Caves | Discovered exit to Factory (range 10) 10080 | -6/Proximity Caves | Spotted B-75 Beast 10092 | -6/Proximity Caves | Destroyed B-75 Beast 10172 | -6/Proximity Caves | Entered Factory 10172 | -6/Factory | Accompanied by 1 ally 10172 | -6/Factory | Evolved 2 slots: Power x1, Utility x1 10173 | -6/Factory | Identified exit to Extension 10174 | -6/Factory | Loaded intel: 102 trap records 10425 | -6/Factory | Incoming investigation squad redirected 10468 | -6/Factory | Discovered exit to Extension (range 11) 10510 | -6/Factory | Entered Extension 10573 | -6/Extension | Rescued a captive Derelict 10574 | -6/Extension | Rescued a captive Derelict 10910 | -6/Extension | Spotted B-75 Beast 10979 | -6/Extension | Lost 3 parts (2u1w) 10992 | -6/Extension | Spotted B-75 Beast 11470 | -6/Extension | Rescued A7 11718 | -6/Extension | Rescued a captive Derelict 11745 | -6/Extension | Allies destroyed B-75 Beast 11776 | -6/Extension | Destroyed B-75 Beast 11854 | -6/Extension | Identified exit to Factory 11854 | -6/Extension | Discovered exit to Factory (range 3) 11985 | -6/Extension | Disrupted transfer network 12070 | -6/Extension | Discovered exit to Factory (range 16) 12070 | -6/Extension | Identified exit to Cetus 12070 | -6/Extension | Discovered exit to Cetus (range 16) 12111 | -6/Extension | Entered Cetus 12111 | -6/Cetus | Accompanied by 1 ally (A7) 12116 | -6/Cetus | Acquired a Cetus Manufacturing Module code from A7 12120 | -6/Cetus | Build established: Scavenger-Mutant 12131 | -6/Cetus | Spotted Cetus Guard 12131 | -6/Cetus | Spotted Cetus Guard 12138 | -6/Cetus | Allies destroyed Cetus Guard 12138 | -6/Cetus | Spotted Cetus Guard 12138 | -6/Cetus | Spotted Cetus Guard 12147 | -6/Cetus | Allies destroyed Cetus Guard 12160 | -6/Cetus | Allies destroyed Cetus Guard 12162 | -6/Cetus | Allies destroyed Cetus Guard 12262 | -6/Cetus | Discovered exit to Factory (range 15) 12450 | -6/Cetus | Started Cetus Manufacturing Module 12466 | -6/Cetus | Escorted A7 to Cetus Mainframe 12475 | -6/Cetus | Manufactured an Enhanced Grunt 12500 | -6/Cetus | Manufactured an Enhanced Grunt 12525 | -6/Cetus | Manufactured an Enhanced Grunt 12550 | -6/Cetus | Manufactured an Enhanced Grunt 12565 | -6/Cetus | Identified exit to Archives 12565 | -6/Cetus | Discovered exit to Archives (range 16) 12575 | -6/Cetus | Manufactured an Enhanced Grunt 12598 | -6/Cetus | Spotted Cetus Guard 12598 | -6/Cetus | Spotted Cetus Guard 12678 | -6/Cetus | Discovered exit to Factory (range 16) 12687 | -6/Cetus | Met Revision 17 12899 | -6/Cetus | Found Prototype Device 12900 | -6/Cetus | Identified Exp. Thermal Shield 12940 | -6/Cetus | Entered Archives 12940 | -6/Archives | Accompanied by 5 allies (A7) 12945 | -6/Archives | Received a hacking code to weaken MAIN.C 13029 | -6/Archives | Unable to access archive contents 13037 | -6/Archives | Discovered exit to Factory (range 14) 13080 | -6/Archives | Unable to access archive contents 13085 | -6/Archives | Identified exit to Hub_04(d) 13085 | -6/Archives | Discovered exit to Hub_04(d) (range 14) 13136 | -6/Archives | Discovered exit to Hub_04(d) (range 15) 13308 | -6/Archives | Entered Hub_04(d) 13308 | -6/Hub_04(d) | Accompanied by 3 allies 13342 | -6/Hub_04(d) | Discovered exit to Factory (range 15) 13425 | -6/Hub_04(d) | Incoming investigation squad redirected 13792 | -6/Hub_04(d) | Network Hub disabled 13859 | -6/Hub_04(d) | Spotted Lightning 13862 | -6/Hub_04(d) | Spotted Lightning 13862 | -6/Hub_04(d) | Spotted Lightning 13862 | -6/Hub_04(d) | Spotted Lightning 13883 | -6/Hub_04(d) | Spotted Lightning 13885 | -6/Hub_04(d) | Spotted Lightning 13893 | -6/Hub_04(d) | Destroyed Lightning 13910 | -6/Hub_04(d) | Destroyed Lightning 13925 | -6/Hub_04(d) | System corruption reached 10% 13934 | -6/Hub_04(d) | Destroyed Lightning 13947 | -6/Hub_04(d) | Destroyed Lightning 13953 | -6/Hub_04(d) | Destroyed Lightning 13963 | -6/Hub_04(d) | Destroyed Lightning 13984 | -6/Hub_04(d) | Destroyed 9 combat bots 14008 | -6/Hub_04(d) | First assault squad dispatched 14090 | -6/Hub_04(d) | Incoming assault squad redirected 14118 | -6/Hub_04(d) | Discovered exit to Factory (range 16) 14262 | -6/Hub_04(d) | Incoming investigation squad redirected 14564 | -6/Hub_04(d) | Discovered exit to Factory (range 11) 14631 | -6/Hub_04(d) | Incoming investigation squad redirected 14706 | -6/Hub_04(d) | Spotted Lightning 14710 | -6/Hub_04(d) | Spotted Lightning 14715 | -6/Hub_04(d) | Spotted Lightning 14721 | -6/Hub_04(d) | Entered Factory 14721 | -5/Factory | Evolved 2 slots: Utility x2 14722 | -5/Factory | Identified exit to Upper Caves 14820 | -5/Factory | Spotted B-75 Beast 14835 | -5/Factory | Destroyed B-75 Beast 14923 | -5/Factory | Repaired Centrium Heavy Treads 14948 | -5/Factory | Incoming investigation squad redirected 15021 | -5/Factory | First assault squad dispatched 15048 | -5/Factory | Incoming assault squad redirected 15322 | -5/Factory | Repaired Centrium Heavy Treads 15424 | -5/Factory | Repaired Quantum Reactor 15534 | -5/Factory | Repaired Centrium Medium Armor Plating 15644 | -5/Factory | Repaired Centrium Medium Armor Plating 15669 | -5/Factory | Incoming investigation squad redirected 16233 | -5/Factory | Repaired Centrium Heavy Treads 16342 | -5/Factory | Repaired Centrium Medium Armor Plating 16363 | -5/Factory | Incoming investigation squad redirected 16535 | -5/Factory | Identified exit to Factory 16535 | -5/Factory | Discovered exit to Factory (range 14) 16661 | -5/Factory | Fabricated H-66 Slayer (x2) 16790 | -5/Factory | Fabricated H-66 Slayer? 16826 | -5/Factory | Local fabrication network quarantined 17505 | -5/Factory | Lost 3 parts (1u2w) 17549 | -5/Factory | Incoming investigation squad redirected 17633 | -5/Factory | Lost 3 parts (1u2w) 17641 | -5/Factory | Core integrity fell below 50% 17791 | -5/Factory | Incoming investigation squad redirected 18063 | -5/Factory | Self-destructed Last Messages --------------- 17809_ System Restoration Module purges 1% of system corruption (5%). 17821_ System corrupted: Energy discharge (-14). 17825_ System Restoration Module purges 1% of system corruption (4%). 17870_ GSOMXDV6:RIYFJZ1T:P 0 17894_ System corrupted: Component data lost. 17925_ System Restoration Module purges 1% of system corruption (3%). 17927_ System Restoration Module purges 1% of system corruption (2%). 17949_ System corrupted: Heat flow error (+256). 18000_ Mic. Fission Core destroyed. 18001_ H-66 Slayer shuts down. 18004_ Slug penetrates H-66 Slayer. 18007_ H-66 Slayer destroyed. 18009_ Acquired 64 matter. 18010_ K-01 Serf collects debris. 18036_ K-01 Serf cleans the Repair Station. 18045_ K-01 Serf collects debris. 18048_ K-01 Serf cleans the Fusion Modulator. 18055_ ALERT: Rogue bot located, Programmers report to Factory Zone 1Y. 18058_ System Restoration Module purges 1% of system corruption (1%). 18062_ K-01 Serf cleans the Fusion Modulator. Map ----- +----------------------------------------------------+ | ?????????????????????????????????????????????????? | | ?????????????????????????????????????????????????? | | ?????????????????????????????????????????????????? | | ?????????????????????????????????????????????????? | | ?????????????????????????????????????????????????? | | ?????????????????????????????????????????????????? | | ?????????????????????????????????????????????????? | | ?????????????????????????????????????????????????? | | ?????????????????????????????????????????????????? | | #######??????????????????????????????????????????? | | #??????????????????????????????????????????? | | #??????????????????????????????????????????? | | #??????????????????????????????????????????? | | #??????????????????????????????????????????? | | #??????????????????????????????????????????? | | #??????????????????????????????????????????? | | #????###########???????????????????????????? | | #????# #?????????????????????????### | | #+########## #????????????############## | | #????????????# # | | #????????????# # | | #????????????# # | | #????????????# # | | ############?# ! # | | #+########## ## #?# # | | #?????# ## @ "" #?# # | | #?????####### #### k """ #?# + | | #???????????# #### """ R" #?# # | | #???????????# + """ """ #?# # | | #???????????#### # """ "" #?# # | | #??????????????# # #?# # | | #??????????????# # #?## ########## | | #????????????###+###########??# ## ^ | | ######????????????# #??## # | | ??????????????????# """ #?## ##### ^ | | ??????????????????# "R ###"# ## !! ^ "" | | #################?# """ # # ! ] "" | | ### "" #""" #!![ "" | | # ########### + #"R ! # | | #+#######???# ### #""" #[ | | #???# #?# """"""" # "" [ ! = | | #???# #?# """"""" # = | | " """" #??# ?# """"""" # | | " """" #??# ## """"""" # | | " """" #??# ## ? # # | | " """" #??# #####+#######+###### | | " """" #??# #?# # | | " """" ????### ###?# | | " """" ??????# #???# # | | ???????# ##### # | +----------------------------------------------------+ Best States ------------- Heat Dissipation 78 Energy Generation 45 Energy Capacity 600 Matter Stores 800 Matter Capacity 800 Sight Range 16 Robot Scan Range 10 Terrain Scan Density 310 Cloak Strength 2 Armor Coverage 1275 Resistance: KI 60 Resistance: TH 65 Resistance: EX 35 Resistance: EM 35 Resistance: I 35 Resistance: S 35 Resistance: P 35 Core Shielding 30 Power Shielding 66 Utility Shielding 66 Point Defense Rating 80 Evasion (%) 65 Targeting Accuracy 6 Target Analysis 8 Recoil Reduction 4 Matter Filtering 30 Kinecelleration 40 Offensive Hacking 30 Item Schematics ----------------- Imp. Terrain Scan Processor | -9/Materials | Scanalyzed Imp. Cooling System | -9/Storage | Hacked Particle Cannon | -9/Storage | Hacked Imp. Grenade Launcher | -9/Storage | Hacked Imp. Light Armor Plating | -9/Storage | Hacked Adv. Terrain Scan Processor | -9/Storage | Hacked Imp. Signal Interpreter | -9/Storage | Hacked Adv. Weight Redist. System | -9/Storage | Hacked Imp. Sensor Array | -9/Storage | Hacked Enh. Optical Array | -9/Storage | Hacked Combat Drone Bay | -7/Data Miner | Free Lgt. Regenerative Plating | -7/Data Miner | Free Triangulator | -7/Data Miner | Free Exp. Terrain Scanner | -7/Data Miner | Free Drone Bay | -6/Factory | Hacked Linear Gravjet | -6/Hub_04(d) | Hacked Imp. System Restoration Module | -6/Hub_04(d) | Hacked Nanoactuators | -6/Hub_04(d) | Hacked Adv. Component Analysis Suite | -5/Factory | Hacked Imp. Plasma Cutter | -5/Factory | Hacked Centrium Heavy Treads | -5/Factory | Scanalyzed Robot Schematics ------------------ Y-45 Defender | -9/Storage | Hacked S-27 Virus | -7/Data Miner | Free G-50 Soldier | -7/Data Miner | Free L-41 Fighter | -7/Data Miner | Free H-66 Slayer | -7/Data Miner | Free I-36 Angel | -7/Data Miner | Free Fabricated ------------ H-66 Slayer | x2 | -5/Factory H-66 Slayer | x2 | -5/Factory Alien Tech Used ----------------- None Achievements -------------- Exterminator Main Advantage Project G-00 Revising The Future Challenges ------------ None Game ------ Seed AccelerationHellfireFilter Manual? 0 Play Time 03:02:53 Cumulative 179.3 hours Start 2021.06.01 @ 19:50:32 End 2021.09.18 @ 14:08:54 Sessions 7 Manual Loads 0 Difficulty Explorer Special Mode None Game No. 44 Rogue 1 Adventurer 0 Explorer 43 Win Type - Total 1 Types 0/0/1/0/0/0/0/0/0 Lore% 35 Gallery% 65 Achievement% 42 Wizard Run 0 Options --------- ASCII 0 Keyboard 0 Movement Mouse Keybinds 0 Fullscreen 1 Font 36/Smallcaps Map View 76x50 Tactical HUD 1 Map Filters NONE Filters NONE Steam 1 RUN: 1ef477c6-214a-45ae-a69e-074b38a878d3